bitfinex/quotes_ETHUSD_20260226
["timestamp","ask_amount","ask_price","bid_price","bid_amount"]
[1772125246914,3.89669615,1989.0,1987.7,1.003]
[1772125247123,3.89669615,1989.0,1987.7,5.17442916]
[1772125247309,1.279,1989.0,1987.7,5.17442916]
[1772125247821,1.279,1989.0,1987.8,1.25767179]
[1772125248020,2.53596334,1989.0,1987.8,5.42910095]
[1772125248602,3.89669615,1989.4,1987.9,4.17142916]
[1772125248809,1.25672347,1989.3,1987.9,4.17142916]
[1772125249131,6.30380589,1989.8,1988.1,4.17142916]
[1772125249295,1.25619592,1990.2,1988.9,4.17142916]
[1772125249490,1.25619592,1990.2,1988.1,0.18685624]
[1772125249491,1.25619592,1990.2,1989.1,4.17142916]
[1772125249696,5.02340765,1990.7,1989.0,1.003]
[1772125249697,0.001,1991.8,1990.5,4.17142916]
[1772125249891,0.001,1991.8,1990.7,1.25583965]
[1772125250195,5.54250802,1992.4,1990.9,4.17142916]
[1772125250396,2.257769,1991.8,1990.3,3.83075482]
[1772125250627,2.257769,1991.8,1990.2,4.17142916]
[1772125250628,1.278,1991.7,1990.2,4.17142916]
[1772125250944,17.604283,1991.1,1989.8,5.17442916]
[1772125251221,12.572488,1990.9,1989.5,1.003]
[1772125251423,0.18685624,1991.7,1989.7,4.17142916]
[1772125251424,3.17282419,1991.7,1989.7,4.17142916]
[1772125251730,16.617208,1991.2,1989.7,4.17142916]
[1772125251944,1.277,1991.1,1989.9,4.17142916]
[1772125252095,1.277,1991.3,1990.0,5.17442916]
[1772125252399,3.812751,1991.8,1990.2,4.17142916]
[1772125252604,1.277,1991.8,1990.2,4.17142916]
[1772125253598,17.08181819,1991.7,1989.8,1.25640767]
[1772125253801,2.280361,1991.3,1989.8,1.25640767]
[1772125254025,2.37001,1991.1,1989.8,1.25640767]
[1772125254327,1.276,1991.2,1989.8,1.25640767]
[1772125254528,2.80759737,1991.9,1990.1,4.17142916]
[1772125254529,1.058,1991.8,1990.1,4.17142916]
[1772125254704,1.058,1991.8,1990.3,4.17142916]
[1772125255226,0.5716322,1991.9,1990.3,4.17142916]
[1772125255797,1.275,1992.0,1990.3,4.17142916]
[1772125256025,1.275,1992.0,1990.5,4.17142916]
[1772125256209,8.821446,1991.9,1990.5,4.17142916]
[1772125256608,12.49449526,1991.9,1990.4,1.25602893]
[1772125256812,1.275,1992.0,1989.7,4.17142916]
[1772125256813,18.841257,1991.3,1989.7,4.17142916]
[1772125257128,5.90901443,1991.4,1989.8,1.001]
[1772125257129,5.0416,1991.1,1989.8,1.001]
[1772125257298,1.274,1991.2,1989.8,5.17242916]
[1772125257828,0.5716322,1991.7,1990.0,4.17142916]
[1772125258131,0.5716322,1991.7,1990.2,4.17142916]
[1772125258340,0.5716322,1991.7,1990.3,5.17242916]
[1772125258502,1.82685742,1991.7,1990.3,5.17242916]
[1772125258702,0.5716322,1991.7,1990.3,5.17242916]
[1772125258902,3.67141664,1991.9,1990.3,5.17242916]
[1772125259145,8.215137,1991.9,1990.3,5.17242916]
[1772125259316,1.274,1992.0,1990.4,16.5803]
[1772125259511,1.274,1992.0,1990.5,4.17142916]
[1772125259824,2.73415,1992.5,1990.7,4.17142916]
[1772125260031,11.144503,1992.6,1991.1,4.17142916]
[1772125260334,1.273,1992.6,1991.1,4.17142916]
[1772125260909,16.5134,1992.5,1991.1,4.17142916]
[1772125261105,1.273,1992.6,1991.1,4.17142916]
[1772125261810,1.272,1992.8,1991.1,4.17142916]
[1772125262010,1.272,1992.8,1991.3,4.17142916]
[1772125262011,2.52652746,1992.8,1991.3,4.17142916]
[1772125262209,2.52653111,1992.8,1991.4,5.17142916]
[1772125262411,1.25426449,1993.2,1991.5,4.17142916]
[1772125262626,2.641917,1993.0,1991.5,4.17142916]
[1772125263059,6.30549418,1993.0,1991.5,4.17142916]
[1772125263352,33.66357718,1992.8,1991.2,1.2555243]
[1772125263556,3.66163898,1992.6,1991.2,1.2555243]
[1772125263856,15.696892,1992.2,1990.7,5.02334637]
[1772125264068,1.271,1992.5,1990.9,5.42714265]
[1772125264069,2.52576811,1992.4,1990.9,5.42714265]
[1772125264270,2.321777,1992.3,1991.0,4.17142916]
[1772125264565,9.065565,1992.3,1990.9,1.25571349]
[1772125265070,3.240131,1992.3,1990.9,1.25571349]
[1772125265284,3.240131,1992.3,1991.0,4.17142916]
[1772125265561,1.25457921,1992.7,1991.2,4.17142916]
[1772125266265,5.01907247,1992.8,1991.4,4.17142916]
[1772125266441,21.156617,1992.7,1991.4,4.17142916]
[1772125266631,21.156617,1992.7,1991.3,1.25546125]
[1772125266822,5.01907247,1992.8,1991.4,4.17142916]
[1772125267229,3.422809,1992.7,1991.3,1.25546125]
[1772125267430,30.0,1992.5,1991.1,2.25454025]
[1772125267631,9.316798,1992.3,1991.1,1.25554025]
[1772125267940,1.271,1992.2,1991.1,1.25554025]
[1772125268137,1.271,1992.2,1990.9,0.999]
[1772125268138,14.242597,1992.0,1990.9,0.999]
[1772125268348,14.242597,1992.0,1990.5,4.17142916]
[1772125268349,4.652118,1992.0,1990.5,5.4273319]
[1772125268569,1.25495708,1992.1,1990.7,4.17142916]
[1772125269652,10.385222,1991.9,1990.7,4.17142916]
[1772125269972,20.453732,1992.0,1990.6,5.02338609]
[1772125270181,5.02008032,1992.1,1990.6,4.03912201]
[1772125270654,21.278025,1992.0,1990.6,4.03912201]
[1772125270974,15.934507,1992.0,1990.6,4.03912201]
[1772125271154,5.852406,1992.0,1990.6,4.03912201]
[1772125271374,5.02008032,1992.1,1990.6,4.03912201]
[1772125271674,5.01972674,1992.2,1990.6,4.03912201]
[1772125272178,18.242134,1992.1,1990.8,4.03912201]
[1772125272669,30.0,1992.0,1990.6,1.25585945]
[1772125272970,16.816276,1991.9,1990.6,1.25585945]
[1772125273175,12.440776,1991.9,1990.6,1.25585945]
[1772125273342,12.221203,1991.6,1990.4,4.03912201]
[1772125273538,8.052357,1991.6,1990.4,5.29514752]
[1772125273745,8.052357,1991.6,1990.0,0.998]
[1772125273746,8.052357,1991.6,1990.1,1.25616659]
[1772125273944,8.052357,1991.6,1990.0,6.29336013]
[1772125274155,15.964226,1991.4,1990.0,6.29336013]
[1772125274349,1.274,1991.3,1990.0,6.29336013]
[1772125274765,1.274,1991.3,1990.7,0.0011]
[1772125275149,1.274,1991.3,1990.0,6.29336013]
[1772125275349,1.274,1991.3,1990.0,0.998]
[1772125275350,30.0,1991.2,1990.0,0.998]
[1772125275573,30.0,1991.2,1990.4,0.0011]
[1772125275574,7.39053,1991.2,1990.4,0.0011]
[1772125276074,1.25571349,1990.9,1989.6,4.03912201]
[1772125276380,30.0,1990.7,1989.5,0.998]
[1772125276543,18.381422,1990.7,1989.5,2.25459535]
[1772125276743,4.026014,1990.7,1989.5,2.25459535]
[1772125276944,4.026014,1990.7,1989.5,0.998]
[1772125277280,11.563604,1989.9,1988.5,5.29635107]
[1772125277485,1.276,1989.8,1988.6,5.03612201]
[1772125278376,2.53240864,1989.8,1988.8,4.03912201]
[1772125279258,2.53240864,1989.8,1988.6,2.25414754]
[1772125280088,1.25640864,1989.8,1988.6,2.25414754]
[1772125280266,1.276,1989.7,1988.6,6.29326955]
[1772125280472,1.276,1989.7,1988.6,1.25714754]
[1772125280795,5.003219,1988.9,1987.8,1.25876409]
[1772125280981,11.930469,1989.4,1987.9,4.03912201]
[1772125281475,10.820763,1989.4,1987.9,4.03912201]
[1772125282587,10.820763,1989.4,1988.1,4.03912201]
[1772125282588,1.25672347,1989.3,1988.1,4.03912201]
[1772125282788,1.59471514,1988.6,1987.8,0.0011]
[1772125283106,1.276,1988.7,1987.8,0.0011]
[1772125284467,1.25716584,1988.6,1987.8,0.0011]
[1772125285513,2.53205609,1988.8,1987.8,5.03922201]
[1772125285667,1.25684983,1989.1,1987.8,5.03922201]
[1772125286385,2.53134453,1990.0,1988.3,1.59471514]
[1772125286599,2.957187,1990.2,1988.7,4.03912201]
[1772125286930,1.25609204,1990.3,1988.9,4.03912201]
[1772125287198,1.25609204,1990.3,1989.0,4.03912201]
[1772125287568,0.001,1989.7,1989.0,4.03912201]
[1772125288096,1.2555243,1991.2,1989.3,4.03912201]
[1772125288297,4.455336,1991.0,1989.6,4.03912201]
[1772125288463,4.455336,1991.0,1989.7,5.29559283]
[1772125288464,1.25571349,1990.9,1989.7,5.29559283]
[1772125288665,1.2555243,1991.2,1989.8,4.03912201]
[1772125288869,1.2555243,1991.2,1990.0,4.03912201]
[1772125289574,1.2555006,1991.3,1990.2,4.03912201]
[1772125290699,1.25520911,1991.7,1990.4,4.03912201]
[1772125290994,21.150914,1991.6,1990.5,0.998]
[1772125291696,6.723768,1991.6,1990.5,0.998]
[1772125292499,1.25533517,1991.5,1990.5,0.998]
[1772125292682,1.25533517,1991.5,1990.4,4.03912201]
[1772125292875,8.540022,1991.2,1990.0,5.03712201]
[1772125293077,1.276,1991.2,1990.0,5.03712201]
[1772125293280,1.59471514,1991.0,1990.0,5.03712201]
[1772125293483,1.276,1991.2,1990.0,5.03712201]
[1772125293685,10.116357,1991.1,1990.0,5.03712201]
[1772125294001,2.53070281,1990.9,1989.2,4.03912201]
[1772125294203,30.0,1990.8,1989.2,4.03912201]
[1772125294380,4.369643,1990.6,1989.2,4.03912201]
[1772125294582,1.25596583,1990.5,1989.2,4.03912201]
[1772125294777,2.5936,1990.4,1989.2,4.03912201]
[1772125295100,4.414471,1990.3,1989.2,4.03912201]
[1772125295266,14.156414,1990.1,1989.1,0.998]
[1772125295472,7.245331,1990.0,1989.1,0.998]
[1772125295670,1.25596583,1990.5,1989.2,4.14622652]
[1772125296382,1.25596583,1990.5,1989.4,4.14622652]
[1772125296979,6.499919,1990.6,1989.6,4.14622652]
[1772125297500,1.25583965,1990.8,1989.6,4.14622652]
[1772125298415,1.25583965,1990.8,1989.3,0.997]
[1772125298416,1.59471514,1990.5,1989.3,0.997]
[1772125298715,1.276,1990.4,1989.3,0.997]
[1772125298922,1.276,1990.4,1989.3,2.25370488]
[1772125299075,1.25609204,1990.3,1989.3,2.25370488]
[1772125300325,1.25609204,1990.3,1989.5,4.30120313]
[1772125301167,1.25590274,1990.6,1989.6,5.5566371]
[1772125301373,1.25590274,1990.6,1989.7,0.999]
[1772125301798,1.25590274,1990.6,1989.7,5.29910313]
[1772125303701,21.298166,1990.5,1989.7,0.999]
[1772125303907,21.298166,1990.5,1989.5,0.0011]
[1772125305410,30.0,1990.0,1989.4,0.0011]
[1772125305582,6.38274487,1990.7,1989.4,0.0011]
[1772125305583,3.284349,1990.2,1989.4,0.0011]
[1772125305774,1.28,1990.3,1989.4,0.0011]
[1772125305974,1.28,1990.3,1989.4,1.0001]
[1772125306518,1.28,1990.3,1989.4,5.30020313]
[1772125307992,1.25615516,1990.2,1989.4,5.30020313]
[1772125309917,5.02462064,1990.6,1989.4,5.30020313]
[1772125309918,2.5345243,1991.3,1989.7,4.30010313]
[1772125310101,2.314974,1991.1,1989.9,4.30010313]
[1772125310415,5.02310628,1991.2,1989.9,4.30010313]
[1772125311493,1.59471514,1991.0,1989.9,4.30010313]
[1772125311691,16.245798,1990.9,1989.8,0.999]
[1772125311894,1.25590274,1990.6,1989.8,0.999]
[1772125312622,1.25590274,1990.6,1989.9,4.30010313]
[1772125313922,5.02361097,1990.7,1989.4,4.30120313]
[1772125314121,11.40891,1990.6,1989.4,4.30120313]
[1772125315018,11.40891,1990.6,1989.5,0.0011]
[1772125315525,30.0,1990.3,1989.5,0.0011]
[1772125315696,19.439276,1990.1,1989.4,0.0011]
[1772125315897,1.25640767,1989.8,1989.2,0.0011]
[1772125316121,1.281,1989.7,1988.6,4.30010313]
[1772125316422,1.281,1989.7,1988.4,0.998]
[1772125316423,4.19432896,1989.6,1988.4,0.998]
[1772125316623,5.02563071,1990.0,1988.4,0.998]
[1772125316624,5.02363682,1990.6,1989.5,4.30010313]
[1772125316922,1.25583965,1990.7,1989.5,4.30010313]
[1772125317093,1.282,1990.5,1989.2,0.998]
[1772125317494,5.02310628,1991.0,1989.8,4.30010313]
[1772125317698,5.02310628,1991.0,1990.0,4.30010313]
[1772125318522,1.282,1990.9,1990.0,4.30010313]
[1772125319538,1.282,1990.9,1989.6,4.30010313]
[1772125319539,2.285356,1990.8,1989.6,4.30010313]
[1772125320329,6.47968496,1990.8,1989.3,2.25367863]
[1772125320648,21.359943,1990.5,1989.3,0.997]
[1772125320849,10.148425,1990.3,1989.2,4.30010313]
[1772125321015,4.395,1990.3,1988.9,2.25394227]
[1772125321346,2.125942,1990.3,1988.9,6.55404699]
[1772125321850,1.281,1990.4,1989.0,4.30010313]
[1772125322027,1.25583965,1990.7,1989.5,4.30010313]
[1772125322227,1.25583965,1990.7,1989.7,4.30010313]
[1772125322765,1.25583965,1990.7,1989.9,4.30010313]
[1772125323757,1.25583965,1990.7,1989.6,0.997]
[1772125324169,1.25583965,1990.7,1989.5,4.30010313]
[1772125324322,1.25583965,1990.7,1989.5,5.29710313]
[1772125324648,30.0,1990.4,1989.0,4.30010313]
[1772125324820,26.903894,1990.6,1989.4,5.29710313]
[1772125325027,1.281,1990.5,1989.0,5.29710313]
[1772125325274,17.830104,1990.4,1989.0,5.29710313]
[1772125325420,17.830104,1990.4,1988.7,5.02790487]
[1772125325421,30.0,1990.1,1988.7,2.25410198]
[1772125325621,1.282,1990.0,1988.7,6.55420511]
[1772125325831,1.282,1990.0,1988.7,5.29710313]
[1772125326031,20.728608,1989.9,1988.7,5.29710313]
[1772125326242,21.616359,1989.8,1988.7,0.997]
[1772125326577,1.25647082,1989.7,1988.7,2.25408864]
[1772125326775,1.25647082,1989.7,1988.8,4.30010313]
[1772125326976,1.25647082,1989.7,1988.7,2.25408864]
[1772125326977,1.25647082,1989.7,1988.6,0.997]
[1772125327286,1.25647082,1989.7,1988.6,6.55426653]
[1772125327660,1.25647082,1989.7,1988.8,0.0011]
[1772125327849,5.7890441,1989.3,1987.9,1.25870319]
[1772125328051,1.283,1989.2,1987.9,1.25870319]
[1772125328278,21.463724,1989.1,1987.9,0.0011]
[1772125328462,5.47732896,1989.2,1988.5,0.0011]
[1772125328663,1.25691302,1989.0,1988.5,0.0011]
[1772125329580,5.68738013,1989.0,1987.9,0.0011]
[1772125330077,23.234942,1988.9,1987.9,0.0011]
[1772125330301,5.68738013,1989.0,1987.9,0.0011]
[1772125330302,1.285,1988.8,1987.9,0.0011]
[1772125330780,1.25710262,1988.7,1987.9,0.0011]
[1772125331889,2.54310262,1988.7,1987.9,0.0011]
[1772125332089,2.54310262,1988.7,1987.8,0.0011]
[1772125333403,21.198792,1988.5,1987.8,0.0011]
[1772125333558,4.43046711,1988.5,1987.7,0.0011]
[1772125333959,2.175,1988.6,1987.7,0.0011]
[1772125334184,2.54310262,1988.7,1987.7,0.0011]
[1772125334590,22.781758,1988.5,1987.7,0.0011]
[1772125334796,1.25729229,1988.4,1987.7,0.0011]
[1772125335022,1.287,1988.3,1987.7,0.0011]
[1772125335518,5.02916918,1988.5,1987.7,0.0011]
[1772125335715,6.5,1988.8,1987.7,4.23310849]
[1772125335916,5.312331,1988.8,1987.7,4.23310849]
[1772125336132,5.02841051,1988.9,1987.8,4.23200849]
[1772125336133,1.25697621,1988.9,1987.8,4.23200849]
[1772125336415,1.25672347,1989.3,1987.8,4.23200849]
[1772125336621,5.02488966,1990.2,1988.2,4.23200849]
[1772125336784,1.25647082,1989.7,1988.6,4.23200849]
[1772125337289,1.288,1989.6,1988.6,4.23200849]
[1772125337489,1.288,1989.6,1988.3,2.25331656]
[1772125337700,1.288,1989.6,1988.4,4.23200849]
[1772125338483,1.25647082,1989.7,1988.3,2.25331656]
[1772125338484,9.45482912,1990.4,1988.8,4.23200849]
[1772125338684,1.25621828,1990.1,1989.1,1.25684983]
[1772125339114,1.288,1990.0,1989.1,1.25684983]
[1772125339413,1.25621828,1990.1,1988.6,4.23200849]
[1772125339610,1.289,1989.9,1988.7,5.22800849]
[1772125339813,26.641518,1989.8,1988.7,0.996]
[1772125340111,5.272243,1989.8,1988.7,0.99083367]
[1772125340314,4.576541,1989.8,1988.5,1.25722906]
[1772125340513,4.576541,1989.8,1988.3,4.23200849]
[1772125340514,12.44286511,1989.6,1988.3,4.23200849]
[1772125340711,1.25672347,1989.3,1988.1,4.95331209]
[1772125340883,1.25672347,1989.3,1988.5,0.0011]
[1772125341284,1.289,1989.5,1988.6,5.22800849]
[1772125341487,1.25657063,1989.6,1988.6,5.22800849]
[1772125342716,5.02600232,1989.7,1988.6,5.4891294]
[1772125343323,2.515423,1989.6,1988.5,0.0011]
[1772125343507,4.43046711,1989.3,1988.2,0.0011]
[1772125343714,34.43046711,1989.0,1988.2,0.0011]
[1772125343913,11.473112,1988.9,1988.2,0.0011]
[1772125344113,4.43046711,1989.0,1987.7,0.0011]
[1772125344114,1.29,1988.8,1987.7,0.0011]
[1772125344753,1.25722906,1988.5,1987.7,0.0011]
[1772125345043,1.291,1988.4,1987.7,0.0011]
[1772125346142,1.25722906,1988.5,1987.7,0.0011]
[1772125346320,1.291,1989.0,1987.9,4.23200849]
[1772125347326,1.25697621,1988.9,1988.0,1.25754527]
[1772125347842,1.25697621,1988.9,1987.9,4.23200849]
[1772125348034,1.25697621,1988.9,1987.8,1.25767179]
[1772125348239,1.25697621,1988.9,1987.8,5.48968028]
[1772125349031,2.54796379,1989.0,1987.9,4.23200849]
[1772125349259,5.02728176,1989.2,1988.1,4.23200849]
[1772125349563,5.02728176,1989.2,1988.2,0.995]
[1772125350639,1.25647082,1989.7,1988.3,4.23200849]
[1772125351232,4.8280864,1990.0,1988.5,4.23200849]
[1772125351437,1.2562814,1990.0,1988.7,4.23200849]
[1772125351644,1.2562814,1990.0,1988.9,4.23200849]
[1772125351963,1.25609204,1990.3,1988.9,5.22800849]
[1772125352264,1.25609204,1990.3,1988.4,1.25729229]
[1772125352265,10.841352,1989.6,1988.4,1.25729229]
[1772125352461,1.292,1989.5,1988.3,0.996]
[1772125352966,34.43046711,1989.4,1987.8,4.23200849]
[1772125353139,3.158682,1989.2,1988.0,0.996]
[1772125353336,2.54784983,1989.1,1988.0,2.25349549]
[1772125353671,14.753393,1989.0,1987.9,2.25470733]
[1772125354039,2.54784983,1989.1,1987.9,2.25470733]
[1772125354640,2.243254,1989.0,1987.9,2.25470733]
[1772125354938,2.54784983,1989.1,1987.9,2.25470733]
[1772125355134,2.54972347,1989.4,1988.0,4.23826124]
[1772125355346,5.02707279,1989.3,1988.3,4.23826124]
[1772125355666,1.25764487,1989.5,1988.4,5.23526124]
[1772125356679,0.001,1989.5,1988.4,5.23526124]
[1772125357268,0.001,1989.5,1988.6,4.23826124]
[1772125357703,1.293,1990.5,1988.8,4.23826124]
[1772125357979,1.293,1990.5,1989.0,4.23826124]
[1772125357980,5.02415838,1990.4,1989.0,4.23826124]
[1772125358371,5.02415838,1990.4,1989.1,5.23626124]
[1772125359153,5.02415838,1990.4,1989.1,4.23826124]
[1772125359391,24.432537,1990.2,1989.1,0.997]
[1772125359693,1.293,1990.1,1989.1,0.997]
[1772125359897,14.200058,1989.8,1988.7,0.997]
[1772125360097,1.294,1989.7,1988.7,0.997]
[1772125361503,1.293,1990.1,1988.9,4.26922461]
[1772125363121,1.25615516,1990.3,1988.9,4.26922461]
[1772125363122,1.25692585,1990.6,1988.9,2.23231875]
[1772125363281,0.001,1990.6,1989.6,4.26922461]
[1772125363486,0.001,1990.6,1989.8,4.26922461]
[1772125364288,0.001,1990.6,1989.6,0.997]
[1772125364680,0.001,1990.6,1989.6,5.26622461]
[1772125365104,4.37766544,1990.6,1988.8,4.26922461]
[1772125365418,1.25609204,1990.3,1989.1,4.26922461]
[1772125367796,5.02487719,1990.5,1989.2,1.25678664]
[1772125368113,9.40154263,1990.5,1989.3,0.998]
[1772125368823,9.40154263,1990.5,1989.2,1.25678664]
[1772125368992,4.37666544,1990.1,1988.9,0.999]
[1772125369202,1.292,1990.0,1988.9,0.999]
[1772125370088,1.25634453,1989.9,1989.0,1.25691302]
[1772125370921,1.25634453,1989.9,1989.1,4.26922461]
[1772125371824,1.25602893,1990.4,1989.1,4.26922461]
[1772125372018,1.25602893,1990.4,1989.2,1.25678664]
[1772125372221,1.25602893,1990.4,1989.3,4.26922461]
[1772125372425,2.63813,1990.3,1989.3,0.999]
[1772125372628,5.63269437,1990.4,1989.3,0.999]
[1772125372816,25.62346044,1990.3,1989.3,0.999]
[1772125373016,4.37666544,1990.3,1989.3,0.999]
[1772125373513,4.37666544,1990.3,1989.1,1.25684835]
[1772125373713,4.37666544,1990.2,1989.1,0.999]
[1772125373914,4.37666544,1990.0,1988.8,2.25598391]
[1772125374106,5.63300997,1989.9,1988.8,0.999]
[1772125374309,5.63300997,1989.9,1988.8,2.25603763]
[1772125374525,23.823841,1989.7,1988.6,0.999]
[1772125374738,1.293,1989.6,1988.6,0.999]
[1772125375615,1.293,1989.6,1988.2,0.0011]
[1772125375616,4.37666544,1989.4,1988.2,0.0011]
[1772125375823,1.293,1989.6,1988.3,5.52767574]
[1772125376011,1.293,1989.6,1988.4,4.26922461]
[1772125376012,6.5,1989.5,1988.4,4.26922461]
[1772125376534,1.25666029,1989.4,1988.4,5.52647806]
[1772125376915,1.25666029,1989.4,1988.5,1.0]
[1772125377930,1.25666029,1989.4,1988.5,5.26922461]
[1772125378526,5.02664119,1989.5,1988.5,5.26922461]
[1772125378923,5.02664119,1989.5,1988.3,0.0011]
[1772125378924,4.37666544,1989.4,1988.3,2.2584508]
[1772125379628,4.37666544,1989.4,1988.7,0.0011]
[1772125379833,5.02664119,1989.5,1988.7,0.0011]
[1772125382240,6.92626257,1989.6,1988.8,5.26922461]
[1772125382241,2.54958015,1989.6,1988.8,5.26922461]
[1772125382853,1.25621828,1990.1,1989.0,4.26922461]
[1772125383026,1.296,1990.0,1989.0,4.26922461]
[1772125383355,1.296,1990.0,1988.8,2.25698845]
[1772125383356,18.952827,1989.9,1988.8,2.25698845]
[1772125383554,13.717302,1989.9,1988.8,2.25698845]
[1772125383852,5.67266544,1990.0,1988.9,4.26922461]
[1772125385252,1.25634453,1989.9,1989.0,1.25691302]
[1772125385453,1.25634453,1989.9,1988.9,5.52614918]
[1772125385951,1.25634453,1989.9,1989.0,4.26922461]
[1772125386469,5.02536036,1990.1,1989.0,4.26922461]
[1772125386470,2.55421828,1990.1,1989.0,4.26922461]
[1772125387279,1.25621828,1990.1,1989.0,4.26922461]
[1772125387572,30.0,1990.2,1988.7,5.27232461]
[1772125387771,4.37666544,1990.0,1988.8,4.26922461]
[1772125388072,5.02459812,1990.3,1988.8,4.26922461]
[1772125388295,1.25609204,1990.3,1989.0,4.26922461]
[1772125388584,1.299,1990.2,1989.1,5.27122461]
[1772125388749,1.299,1990.2,1989.2,5.27122461]
[1772125388946,1.299,1990.2,1989.3,1.002]
[1772125389778,1.25609204,1990.3,1989.4,4.35756331]
[1772125391368,0.001,1990.4,1989.4,4.35756331]
[1772125391569,1.25703282,1990.4,1989.4,4.35756331]
[1772125391771,1.298,1990.3,1989.2,1.001]
[1772125391975,0.001,1990.4,1989.2,5.35856331]
[1772125392205,4.18116235,1992.5,1990.4,0.2625814]
[1772125392344,7.50729135,1993.5,1991.4,4.35756331]
[1772125392554,7.50729135,1993.5,1990.6,0.08192]
[1772125392555,34.18116235,1993.1,1991.6,4.35756331]
[1772125392846,4.18116235,1992.8,1991.4,1.002]
[1772125393074,3.5709,1992.7,1991.2,4.35756331]
[1772125393252,1.299,1992.6,1991.2,4.35756331]
[1772125393655,1.25470514,1992.5,1991.3,1.25546125]
[1772125393862,1.25570514,1992.5,1991.3,1.25546125]
[1772125394071,2.925368,1992.4,1991.2,5.61306851]
[1772125394269,2.925368,1992.4,1990.8,5.02308255]
[1772125394270,4.18116235,1992.3,1990.8,4.35756331]
[1772125394468,2.925368,1992.4,1990.0,2.23231875]
[1772125394469,30.0,1992.0,1990.5,2.2579256]
[1772125394778,4.18116235,1991.7,1990.4,0.2625814]
[1772125394984,1.298,1991.6,1990.5,4.35756331]
[1772125395156,0.001,1991.7,1990.5,4.35756331]
[1772125395355,0.001,1991.7,1990.5,5.35856331]
[1772125395573,0.001,1991.6,1990.5,5.35856331]
[1772125395773,1.25608308,1991.9,1990.6,1.25590274]
[1772125396584,0.001,1991.8,1990.7,4.35756331]
[1772125396762,1.50534864,1993.0,1990.6,1.25590274]
[1772125396763,1.25426449,1993.2,1991.1,4.54441955]
[1772125396962,20.313957,1993.0,1991.6,4.35756331]
[1772125397163,15.80922,1993.0,1991.7,1.002]
[1772125397470,0.001,1992.9,1991.7,1.002]
[1772125397655,1.25457921,1992.7,1991.8,1.25514609]
[1772125397853,1.25556183,1992.8,1991.8,1.25514609]
[1772125398055,0.001,1992.7,1991.4,4.35756331]
[1772125398462,0.001,1992.6,1991.7,3.68265]
[1772125398662,0.001,1992.8,1991.8,5.35956331]
[1772125398882,2.55239339,1993.0,1991.8,5.35956331]
[1772125399086,0.001,1992.9,1991.8,5.35956331]
[1772125399590,1.25407574,1993.5,1992.3,4.35756331]
[1772125399758,1.297,1993.5,1992.5,4.35756331]
[1772125401162,1.25388704,1993.8,1992.5,4.35756331]
[1772125401373,1.25388704,1993.8,1992.1,5.20618063]
[1772125401374,4.18116235,1993.5,1992.1,4.35756331]
[1772125401571,2.28443,1993.3,1992.1,4.35756331]
[1772125401793,1.25426449,1993.2,1991.8,1.25511644]
[1772125401990,5.43542684,1993.2,1991.7,6.61577094]
[1772125402207,22.34599535,1993.1,1991.7,5.36056331]
[1772125402505,23.629722,1993.0,1991.7,5.36056331]
[1772125402711,14.050766,1992.8,1991.7,1.003]
[1772125403013,7.327335,1992.8,1991.7,1.003]
[1772125403213,1.25426449,1993.2,1991.8,5.36056331]
[1772125403795,1.25426449,1993.2,1991.9,1.25508308]
[1772125404117,1.297,1993.1,1991.9,1.25508308]
[1772125404416,2.399109,1993.0,1991.9,4.35756331]
[1772125404612,1.297,1993.1,1991.9,4.35756331]
[1772125405820,1.297,1993.6,1992.3,4.35756331]
[1772125405998,1.297,1993.6,1992.4,5.36056331]
[1772125406200,0.001,1993.1,1992.4,1.003]
[1772125406510,0.001,1993.1,1992.4,5.36056331]
[1772125406932,2.6123783,1993.9,1992.4,5.36056331]
[1772125406933,2.39684,1993.7,1992.4,5.36056331]
[1772125407137,2.39684,1993.7,1992.0,1.25502008]
[1772125407138,1.58920873,1993.5,1992.0,5.36056331]
[1772125407289,5.17355,1993.5,1992.0,5.36056331]
[1772125407702,1.25413865,1993.4,1992.1,1.25495708]
[1772125407922,3.141653,1993.3,1992.1,1.25495708]
[1772125408094,1.25413865,1993.4,1992.2,4.35756331]
[1772125408294,18.26046,1993.3,1992.0,5.36056331]
[1772125408519,5.01655463,1993.7,1992.0,5.36056331]
[1772125408520,7.476851,1993.8,1992.3,4.35756331]
[1772125408722,2.190501,1993.8,1992.4,5.36056331]
[1772125408925,4.18116235,1993.9,1992.4,5.36056331]
[1772125409338,2.694046,1993.8,1992.4,5.36056331]
[1772125409496,2.694046,1993.8,1992.4,4.35756331]
[1772125409697,1.25413865,1993.4,1992.0,4.35756331]
[1772125409901,2.60657,1993.2,1992.0,5.61257974]
[1772125410210,2.35527,1993.0,1992.0,4.35756331]
[1772125410409,2.35527,1993.0,1992.0,5.61258101]
[1772125410719,1.296,1993.1,1992.1,4.35756331]
[1772125410917,1.296,1993.1,1991.9,1.25504941]
[1772125411811,1.25439036,1993.0,1991.8,5.61266115]
[1772125412507,1.295,1992.9,1991.9,4.35756331]
[1772125412927,5.47616235,1992.9,1991.6,2.25824827]
[1772125413126,4.18116235,1992.8,1991.5,5.61289761]
[1772125413432,1.295,1992.9,1991.6,5.36156331]
[1772125413801,4.18116235,1993.2,1991.8,4.35756331]
[1772125414006,1.295,1993.1,1992.0,4.35756331]
[1772125414239,9.19796865,1993.6,1992.2,4.35756331]
[1772125414240,1.295,1993.2,1992.2,4.35756331]
[1772125415706,1.25432742,1993.1,1992.3,1.25483109]
[1772125415909,1.25432742,1993.1,1992.2,4.35756331]
[1772125416110,1.25432742,1993.1,1992.1,1.004]
[1772125416311,1.25432742,1993.1,1991.9,1.25505334]
[1772125416510,1.25432742,1993.1,1991.8,6.67240293]
[1772125416511,24.241582,1993.0,1991.8,6.67240293]
[1772125416744,4.53794026,1992.7,1991.4,0.0011]
[1772125416952,0.08192,1992.5,1991.4,1.25649279]
[1772125417150,2.85552,1992.4,1991.4,1.25649279]
[1772125417450,1.294,1992.7,1991.4,7.26011197]
[1772125418055,7.63220157,1993.3,1992.0,1.59032774]
[1772125418228,2.54820157,1993.3,1992.0,6.00361918]
[1772125418825,21.26104474,1993.2,1992.0,4.41329144]
[1772125419026,0.001,1993.0,1991.9,1.004]